bitfinex/quotes_SOLUSD_20250222
["timestamp","ask_amount","ask_price","bid_price","bid_amount"]
[1740218501076,0.03,173.64,173.62,23.66858532]
[1740218501272,0.03,173.64,173.63,17.90888532]
[1740218503373,0.03,173.64,173.63,23.66818532]
[1740218505784,0.03,173.64,173.63,17.90888532]
[1740218505985,0.03,173.64,173.62,17.90888532]
[1740218507964,0.03,173.64,173.63,17.90888532]
[1740218510985,80.23,173.64,173.63,17.90888532]
[1740218511187,80.23,173.64,173.62,17.90888532]
[1740218511684,80.23,173.64,173.63,0.063]
[1740218512084,80.23,173.64,173.63,17.97188532]
[1740218512763,80.23,173.64,173.63,0.063]
[1740218519872,85.989,173.64,173.63,0.063]
[1740218520185,80.23,173.64,173.63,0.063]
[1740218522091,85.989,173.64,173.63,0.063]
[1740218523487,36.92089961,173.64,173.63,0.063]
[1740218523696,37.92089961,173.64,173.63,0.063]
[1740218523881,36.92089961,173.64,173.63,0.063]
[1740218524865,37.92089961,173.64,173.63,0.063]
[1740218525072,36.92089961,173.64,173.63,0.063]
[1740218525590,37.92089961,173.64,173.63,0.063]
[1740218526297,37.92089961,173.64,173.63,0.0001]
[1740218526471,40.7560213,173.64,173.63,0.0001]
[1740218528697,40.7560213,173.64,173.61,0.063]
[1740218528698,2.0,173.62,173.61,0.063]
[1740218528991,88.76450261,173.62,173.61,0.0001]
[1740218530089,18.64964886,173.57,173.54,0.063]
[1740218530294,30.13189961,173.55,173.54,0.063]
[1740218530694,35.89389961,173.55,173.54,0.063]
[1740218531904,38.79748093,173.55,173.54,0.063]
[1740218535104,40.79748093,173.55,173.54,0.0001]
[1740218535289,38.79748093,173.55,173.54,0.0001]
[1740218535488,39.79748093,173.55,173.54,0.0001]
[1740218535685,40.79748093,173.55,173.54,0.0001]
[1740218539002,20.0,173.51,173.45,0.063]
[1740218539198,176.88,173.5,173.45,0.063]
[1740218539393,172.6,173.5,173.46,11.48225075]
[1740218540109,172.6,173.5,173.47,11.48225075]
[1740218540291,81.2,173.5,173.49,11.48225075]
[1740218540483,81.2,173.5,173.49,13.02245075]
[1740218540695,81.2,173.5,173.49,19.64475075]
[1740218540893,81.2,173.52,173.49,19.64475075]
[1740218541102,81.2,173.52,173.51,11.48225075]
[1740218542690,81.2,173.52,173.51,17.95842496]
[1740218543608,81.2,173.52,173.51,23.72172496]
[1740218543814,81.2,173.52,173.51,17.95842496]
[1740218545707,81.2,173.52,173.5,17.95842496]
[1740218546520,81.2,173.51,173.5,17.95842496]
[1740218547321,81.2,173.51,173.5,18.02142496]
[1740218547507,81.2,173.51,173.5,0.063]
[1740218549527,97.1627,173.53,173.5,0.063]
[1740218549715,91.4,173.52,173.5,0.063]
[1740218550918,91.4,173.52,173.51,17.95842496]
[1740218552213,0.03,173.55,173.51,31.36922496]
[1740218552214,91.43,173.55,173.51,31.36922496]
[1740218552400,91.43,173.55,173.53,17.95842496]
[1740218554224,91.43,173.55,173.53,23.72102496]
[1740218554605,91.43,173.55,173.54,17.95842496]
[1740218555206,0.03,173.55,173.54,17.95842496]
[1740218555615,0.03,173.55,173.54,23.72072496]
[1740218556828,0.03,173.55,173.54,30.73137032]
[1740218557129,172.6,173.59,173.54,30.73137032]
[1740218557130,81.2,173.59,173.55,1.5525]
[1740218557331,81.2,173.59,173.58,17.95842496]
[1740218557516,81.2,173.59,173.58,23.71942496]
[1740218561708,81.2,173.59,173.58,32.71715771]
[1740218562802,81.2,173.59,173.58,17.95842496]
[1740218563107,81.2,173.59,173.58,23.71942496]
[1740218564330,81.2,173.59,173.58,17.95842496]
[1740218564504,80.7,173.59,173.58,17.95842496]
[1740218564710,80.7,173.59,173.55,8.56314536]
[1740218564711,20.0,173.59,173.55,7.01064536]
[1740218564906,17.95842496,173.61,173.53,17.95842496]
[1740218565113,23.71812496,173.62,173.55,17.95842496]
[1740218565636,20.0,173.59,173.55,17.95842496]
[1740218566232,5.7597,173.62,173.56,17.95842496]
[1740218566430,81.2,173.58,173.55,20.0]
[1740218566935,81.2,173.58,173.52,17.95842496]
[1740218567117,81.2,173.58,173.54,20.0]
[1740218567513,81.2,173.58,173.56,17.95842496]
[1740218567733,81.2,173.58,173.54,20.0]
[1740218567734,81.2,173.58,173.55,17.95842496]
[1740218567941,86.961,173.58,173.54,17.95842496]
[1740218568120,81.2,173.58,173.55,17.95842496]
[1740218568626,81.2,173.58,173.54,17.95842496]
[1740218568828,86.9611,173.58,173.54,17.95842496]
[1740218569033,81.2,173.58,173.51,5.7633]
[1740218569217,172.2,173.57,173.54,17.95842496]
[1740218569830,172.2,173.57,173.56,17.95842496]
[1740218570136,96.76,173.61,173.56,17.95842496]
[1740218570311,172.2,173.6,173.57,17.95842496]
[1740218570710,172.2,173.6,173.58,17.95842496]
[1740218570943,0.03,173.59,173.58,17.95842496]
[1740218573829,0.03,173.59,173.58,23.71942496]
[1740218581239,0.03,173.64,173.61,20.0]
[1740218581446,0.03,173.64,173.63,17.95842496]
[1740218583347,0.03,173.64,173.63,23.71772496]
[1740218584047,91.0,173.71,173.66,20.0]
[1740218584247,91.0,173.71,173.7,17.95842496]
[1740218584248,81.2,173.71,173.7,17.95842496]
[1740218584427,81.2,173.72,173.7,17.95842496]
[1740218585524,81.2,173.71,173.67,20.0]
[1740218585729,81.2,173.71,173.7,17.95842496]
[1740218585938,81.23,173.73,173.7,17.95842496]
[1740218586151,81.23,173.73,173.72,17.95842496]
[1740218586826,81.23,173.73,173.71,17.95842496]
[1740218587030,81.23,173.73,173.72,17.95842496]
[1740218587432,81.23,173.73,173.71,17.95842496]
[1740218588966,81.23,173.73,173.7,17.95842496]
[1740218589336,81.23,173.73,173.66,17.95842496]
[1740218589337,172.2,173.72,173.66,17.95842496]
[1740218589632,172.2,173.71,173.69,17.95842496]
[1740218589850,172.2,173.71,173.65,7.271]
[1740218589851,172.2,173.71,173.7,17.95842496]
[1740218590052,81.2,173.71,173.7,17.95842496]
[1740218590253,81.2,173.71,173.69,17.95842496]
[1740218590447,81.2,173.71,173.68,17.95842496]
[1740218591046,81.2,173.71,173.67,17.95842496]
[1740218591456,86.9569,173.71,173.67,17.95842496]
[1740218591961,81.2,173.71,173.68,17.95842496]
[1740218592131,81.2,173.71,173.65,1.5126]
[1740218592132,86.9567,173.71,173.67,17.95842496]
[1740218592337,81.2,173.71,173.67,17.95842496]
[1740218592536,81.2,173.71,173.68,17.95842496]
[1740218592738,86.9567,173.71,173.67,17.95842496]
[1740218593145,81.2,173.71,173.67,17.95842496]
[1740218593468,81.2,173.71,173.68,17.95842496]
[1740218593959,172.2,173.7,173.68,17.95842496]
[1740218594173,172.2,173.7,173.69,17.95842496]
[1740218595560,172.2,173.7,173.69,23.71572496]
[1740218599157,0.03,173.71,173.69,5.7573]
[1740218599359,0.03,173.71,173.7,17.95842496]
[1740218599869,0.03,173.71,173.7,23.71542496]
[1740218600667,0.03,173.71,173.7,17.22596706]
[1740218601152,0.0001,173.73,173.72,50.11861592]
[1740218601468,0.03,173.77,173.72,58.37481592]
[1740218601673,0.03,173.77,173.76,17.22396706]
[1740218604173,0.03,173.77,173.76,11.46896706]
[1740218604543,0.03,173.77,173.75,5.7553]
[1740218604751,0.03,173.77,173.76,17.90743701]
[1740218606961,0.03,173.77,173.72,17.90743701]
[1740218607165,172.2,173.76,173.72,17.90743701]
[1740218607746,172.2,173.76,173.74,17.90743701]
[1740218608270,177.9551,173.76,173.73,17.90743701]
[1740218608456,177.9551,173.76,173.72,17.90743701]
[1740218609782,177.9551,173.76,173.71,17.90743701]
[1740218610068,177.9551,173.76,173.7,17.90743701]
[1740218610374,172.2,173.75,173.7,17.90743701]
[1740218611573,5.7557,173.74,173.7,17.90743701]
[1740218611759,5.7557,173.74,173.64,5.8217]
[1740218611960,172.2,173.73,173.69,17.90743701]
[1740218612166,172.2,173.72,173.69,17.90743701]
[1740218613176,172.2,173.72,173.68,17.90743701]
[1740218613177,81.2,173.71,173.68,17.90743701]
[1740218613548,172.2,173.7,173.68,17.90743701]
[1740218614166,172.2,173.69,173.67,17.90743701]
[1740218614374,81.2,173.68,173.67,17.90743701]
[1740218614960,81.2,173.68,173.64,0.063]
[1740218614961,81.2,173.67,173.64,17.97043701]
[1740218615271,81.2,173.67,173.65,17.90743701]
[1740218615884,81.2,173.66,173.65,17.90743701]
[1740218617860,91.0,173.68,173.65,17.90743701]
[1740218619278,91.0,173.68,173.65,17.97043701]
[1740218619670,91.0,173.68,173.66,17.90743701]
[1740218619871,91.0,173.68,173.65,17.97043701]
[1740218620468,91.0,173.68,173.67,17.90743701]
[1740218621077,172.2,173.72,173.67,17.90743701]
[1740218621282,172.2,173.72,173.71,17.90743701]
[1740218621466,96.7557,173.74,173.71,17.90743701]
[1740218621664,96.7557,173.74,173.68,17.90743701]
[1740218621869,18.64964886,173.73,173.67,17.90743701]
[1740218622180,172.2,173.72,173.66,17.90743701]
[1740218622767,172.2,173.72,173.67,17.90743701]
[1740218623287,177.9564,173.72,173.68,17.90743701]
[1740218623668,177.9564,173.72,173.67,17.90743701]
[1740218625976,177.9564,173.72,173.66,17.90743701]
[1740218626590,172.2,173.71,173.67,17.90743701]
[1740218626793,172.2,173.71,173.68,17.90743701]
[1740218626987,172.2,173.71,173.7,17.90743701]
[1740218627976,81.2,173.74,173.71,5.7567]
[1740218628164,81.2,173.74,173.73,17.90743701]
[1740218628583,81.2,173.74,173.7,5.757]
[1740218628785,81.2,173.74,173.71,17.90743701]
[1740218629991,81.2,173.74,173.73,17.90743701]
[1740218630993,0.03,173.76,173.73,17.90743701]
[1740218631194,0.03,173.76,173.75,17.90743701]
[1740218632094,0.03,173.76,173.75,23.66273701]
[1740218633194,0.03,173.76,173.75,25.30513701]
[1740218633376,0.03,173.76,173.75,43.95478587]
[1740218634085,0.03,173.77,173.76,18.64964886]
[1740218634278,0.0001,173.77,173.76,36.55708587]
[1740218634491,0.03319783,173.88,173.79,27.5598]
[1740218634684,0.03319783,173.88,173.87,17.90743701]
[1740218635090,0.03319783,173.88,173.86,17.90743701]
[1740218635298,81.23319783,173.88,173.86,17.90743701]
[1740218635689,81.23319783,173.88,173.87,17.90743701]
[1740218636580,81.23319783,173.88,173.86,17.90743701]
[1740218639301,81.23319783,173.88,173.81,24.40304886]
[1740218639602,81.23319783,173.88,173.85,17.90743701]
[1740218640103,81.23319783,173.88,173.81,5.7534]
[1740218640407,5.7517,173.86,173.8,17.90743701]
[1740218641499,86.9514,173.87,173.82,17.90743701]
[1740218641692,81.2,173.87,173.84,17.90743701]
[1740218641886,81.2,173.87,173.86,17.90743701]
[1740218643201,81.2,173.87,173.86,23.65913701]
[1740218643386,0.03319783,173.88,173.86,23.65913701]
[1740218643593,0.03319783,173.88,173.87,17.90743701]
[1740218644216,0.06319783,173.88,173.87,17.90743701]
[1740218644405,0.06319783,173.88,173.87,23.65883701]
[1740218644601,0.06319783,173.88,173.86,17.90743701]
[1740218644820,0.06319783,173.88,173.84,17.90743701]
[1740218645001,0.06319783,173.88,173.86,17.90743701]
[1740218645188,0.06319783,173.88,173.85,17.90743701]
[1740218645812,0.06319783,173.88,173.84,17.90743701]
[1740218646314,0.06319783,173.88,173.85,17.90743701]
[1740218647986,0.06319783,173.88,173.87,17.90743701]
[1740218650224,0.06319783,173.88,173.87,23.65883701]
[1740218650824,0.06319783,173.88,173.86,17.90743701]
[1740218651198,0.06319783,173.88,173.85,17.90743701]
[1740218651919,0.06319783,173.88,173.86,17.90743701]
[1740218652103,0.06319783,173.88,173.85,17.90743701]
[1740218653017,81.2,173.87,173.83,1.635]
[1740218653320,81.2,173.87,173.83,17.90743701]
[1740218653517,81.2,173.87,173.84,17.90743701]
[1740218653896,81.2,173.87,173.79,29.83923701]
[1740218653897,86.9515,173.87,173.82,17.90743701]
[1740218654098,81.2,173.86,173.82,17.90743701]
[1740218655334,81.2,173.86,173.83,17.90743701]
[1740218655505,81.2,173.86,173.84,17.90743701]
[1740218656127,81.2,173.86,173.85,17.90743701]
[1740218657305,81.2,173.86,173.85,23.65943701]
[1740218658197,0.06319783,173.88,173.85,23.65943701]
[1740218658412,0.06319783,173.88,173.87,17.90743701]
[1740218659222,0.06319783,173.88,173.87,23.65883701]
[1740218660303,0.06319783,173.88,173.87,25.19653701]
[1740218662637,0.06319783,173.88,173.87,43.10397402]
[1740218662940,0.06319783,173.88,173.87,25.19653701]
[1740218664423,9.783e-05,173.88,173.87,67.85242288]
[1740218664605,9.783e-05,173.88,173.87,68.85242288]
[1740218666109,9.783e-05,173.88,173.87,69.85232288]
[1740218668652,81.2,173.95,173.9,20.0]
[1740218668950,91.0,173.97,173.89,1.0]
[1740218668951,81.2,173.99,173.93,17.90743701]
[1740218669438,81.2,173.99,173.94,17.90743701]
[1740218670240,81.2,173.98,173.94,23.65643701]
[1740218670435,81.2,173.98,173.95,17.90743701]
[1740218670738,81.2,173.98,173.94,5.749]
[1740218670739,81.2,173.98,173.96,17.90743701]
[1740218671540,81.2,173.98,173.94,5.749]
[1740218671839,81.2,173.98,173.95,17.90743701]
[1740218672359,81.2,173.98,173.95,23.65613701]
[1740218672918,81.2,173.98,173.95,5.7487]
[1740218673118,81.2,173.98,173.94,17.90743701]
[1740218673332,28.932223,174.0,173.97,17.90743701]
[1740218673534,28.932223,174.0,173.99,17.90743701]
[1740218677322,34.679423,174.0,173.97,17.90743701]
[1740218678520,28.932223,174.0,173.97,17.90743701]
[1740218678938,34.679423,174.0,173.96,17.90743701]
[1740218679535,34.679423,174.0,173.95,17.90743701]
[1740218681745,81.2,173.99,173.93,17.90743701]
[1740218681936,81.2,173.98,173.93,17.90743701]
[1740218683248,81.2,173.98,173.94,17.90743701]
[1740218683423,81.2,173.98,173.92,5.7497]
[1740218683424,81.2,173.98,173.97,17.90743701]
[1740218684146,28.932223,174.0,173.97,17.90743701]
[1740218684347,28.932223,174.0,173.99,17.90743701]
[1740218685449,28.932223,174.0,173.98,17.90743701]
[1740218686252,34.679323,174.0,173.96,17.90743701]
[1740218686570,34.679323,174.0,173.95,17.90743701]
[1740218687649,81.2,173.99,173.95,17.90743701]
[1740218689051,81.2,173.99,173.97,17.90743701]
[1740218690455,86.9474,173.99,173.95,17.90743701]
[1740218691036,81.2,173.99,173.95,17.90743701]
[1740218691646,86.9475,173.99,173.95,17.90743701]
[1740218692151,81.2,173.98,173.95,17.90743701]
[1740218692352,86.9478,173.98,173.9,13.4926]
[1740218692556,81.2,173.97,173.91,17.90743701]
[1740218692935,81.2,173.97,173.93,17.90743701]
[1740218694054,81.2,173.97,173.95,17.90743701]
[1740218696144,81.2,173.97,173.96,5.7484]
[1740218697871,110.162223,174.0,173.96,5.7484]
[1740218698087,110.162223,174.0,173.98,17.90743701]
[1740218698590,110.162223,174.0,173.99,17.90743701]
[1740218701842,110.162223,174.0,173.97,23.65543701]
[1740218702348,110.162223,174.0,173.97,17.90743701]
[1740218703886,81.2,173.99,173.97,17.90743701]
[1740218704694,81.2,173.99,173.94,11.43704984]
[1740218704888,81.2,173.98,173.94,11.43704984]
[1740218705693,81.2,173.98,173.97,11.43704984]
[1740218706554,81.2,173.98,173.97,17.18514984]
[1740218707174,28.962223,174.0,173.99,20.0]
[1740218707380,28.962223,174.0,173.99,31.43704984]
[1740218707681,71.2,174.1,173.99,32.43704984]
[1740218707869,71.2,174.1,174.05,11.43704984]
[1740218708065,71.2,174.1,174.06,11.43704984]
[1740218708567,71.2,174.1,174.01,5.7465]
[1740218708776,71.2,174.1,174.02,17.85016711]
[1740218708777,17.85016711,174.09,174.02,17.85016711]
[1740218709372,17.85016711,174.09,173.98,1.5109]
[1740218709373,76.9438,174.1,174.03,17.85016711]
[1740218709573,76.9438,174.1,174.04,17.85016711]
[1740218710074,94.79396711,174.1,174.03,17.85016711]
[1740218710875,76.9438,174.1,174.03,17.85016711]
[1740218711880,94.79396711,174.1,174.03,17.85016711]
[1740218712083,94.79396711,174.1,174.02,17.85016711]
[1740218712273,17.85016711,174.09,174.02,17.85016711]
[1740218712675,153.3,174.08,174.02,17.85016711]
[1740218712876,153.3,174.08,174.01,17.85016711]
[1740218713086,5.7448,174.07,174.0,17.85016711]
[1740218713381,5.7448,174.07,173.98,17.85016711]
[1740218713382,171.15016711,174.06,173.98,17.85016711]
[1740218713705,26.1484,174.07,173.96,17.85016711]
[1740218713706,17.85016711,174.03,173.96,17.85016711]
[1740218713867,17.85016711,174.03,173.95,17.85016711]
[1740218714176,17.85016711,174.01,173.94,17.85016711]
[1740218714995,5.7471,174.0,173.93,17.85016711]
[1740218715181,5.7471,174.0,173.94,17.85016711]
[1740218715875,5.7471,174.0,173.91,17.85016711]
[1740218715876,175.55016711,173.99,173.91,17.85016711]
[1740218716078,153.3,173.98,173.93,17.85016711]
[1740218716478,171.15016711,173.97,173.9,17.85016711]
[1740218716673,17.85016711,173.96,173.89,17.85016711]
[1740218717181,5.7487,173.95,173.89,17.85016711]
[1740218717489,71.2,173.94,173.89,17.85016711]
[1740218718366,76.9491,173.94,173.89,17.85016711]
[1740218719092,71.2,173.94,173.91,17.85016711]
[1740218719273,71.2,173.94,173.88,5.8137]
[1740218719274,71.2,173.94,173.92,17.85016711]
[1740218719481,71.2,173.94,173.93,17.85016711]
[1740218720674,71.2,173.94,173.91,17.85016711]
[1740218721090,71.2,173.94,173.93,17.85016711]
[1740218721982,71.2,174.0,173.94,1.6568]
[1740218722272,71.2,174.03,173.95,5.7487]
[1740218722476,71.2,174.03,174.0,17.85016711]
[1740218722680,71.2,174.03,173.99,17.85016711]
[1740218723692,71.2,174.03,173.95,5.7487]
[1740218723693,94.79626711,174.03,173.96,17.85016711]
[1740218723898,153.3,174.02,173.96,17.85016711]
[1740218724094,153.3,174.02,173.95,17.85016711]
[1740218724390,23.59626711,174.03,173.92,17.85016711]
[1740218724391,17.85016711,174.0,173.92,17.85016711]
[1740218724573,17.85016711,173.98,173.91,17.85016711]
[1740218724972,153.3,173.99,173.92,17.85016711]
[1740218725979,171.15016711,173.99,173.92,17.85016711]
[1740218726169,5.7477,173.98,173.92,17.85016711]
[1740218726872,153.3,173.99,173.93,17.85016711]
[1740218727078,153.3,173.99,173.95,17.85016711]
[1740218727993,159.0476,173.99,173.94,17.85016711]
[1740218728205,159.0476,173.99,173.93,17.85016711]
[1740218728374,159.0476,173.99,173.92,17.91316711]
[1740218728575,17.85016711,173.96,173.92,0.063]
[1740218728775,153.3,173.95,173.92,0.063]
[1740218729798,153.3,173.94,173.92,0.063]
[1740218729999,171.15016711,173.94,173.92,0.063]
[1740218730384,23.59956711,173.93,173.92,0.063]
[1740218731098,24.31576711,173.93,173.92,0.063]
[1740218731902,42.96541597,173.93,173.92,0.063]
[1740218732891,49.06661597,173.93,173.92,0.0001]
[1740218733097,50.06661597,173.93,173.92,0.0001]
[1740218733277,49.06661597,173.93,173.92,0.0001]
[1740218733796,30.41696711,173.93,173.92,0.0001]
[1740218734584,17.85016711,173.93,173.92,0.0001]
[1740218734900,22.25016711,173.95,173.92,0.0001]
[1740218735302,17.85016711,173.94,173.92,0.0001]
[1740218735500,17.85016711,173.93,173.92,0.0001]
[1740218735680,36.49981597,173.93,173.92,0.0001]
[1740218736293,17.85016711,173.93,173.92,0.0001]
[1740218736982,23.59956711,173.93,173.92,0.0001]
[1740218737396,42.24921597,173.93,173.92,0.0001]
[1740218738391,43.24921597,173.93,173.92,0.0001]
[1740218738591,44.24921597,173.93,173.92,0.0001]
[1740218738801,56.49981597,173.89,173.88,0.063]
[1740218739007,60.89981597,173.89,173.88,0.063]
[1740218740406,66.65051597,173.89,173.88,0.063]
[1740218740992,20.0,173.85,173.79,0.063]
[1740218741189,17.85016711,173.83,173.79,0.063]
[1740218741806,17.85016711,173.8,173.79,0.063]
[1740218741996,17.85016711,173.82,173.79,0.063]
[1740218742497,17.85016711,173.81,173.79,0.063]
[1740218742810,99.95016711,173.8,173.79,0.063]
[1740218743510,82.1,173.8,173.79,0.063]
[1740218745619,17.85016711,173.81,173.79,0.063]
[1740218747187,17.85016711,173.82,173.79,0.063]
[1740218747394,22.27016711,173.83,173.79,0.063]
[1740218747811,17.85016711,173.83,173.79,0.063]
[1740218747995,17.85016711,173.82,173.79,0.063]
[1740218749298,28.02256711,173.84,173.79,0.063]
[1740218749519,163.3,173.83,173.79,0.063]
[1740218750206,181.15016711,173.83,173.79,0.063]
[1740218750420,163.3,173.83,173.79,0.063]
[1740218750733,163.3,173.83,173.79,17.91316711]
[1740218750893,81.2,173.83,173.81,17.85016711]
[1740218751093,81.2,173.83,173.82,17.85016711]
[1740218752330,81.2,173.83,173.82,23.60316711]
[1740218752922,81.2,173.83,173.8,17.85016711]
[1740218755021,81.2,173.83,173.81,5.7534]
[1740218755217,81.2,173.83,173.79,23.66686711]
[1740218756629,81.2,173.83,173.8,17.85016711]
[1740218756926,81.2,173.82,173.79,0.063]
[1740218757102,17.85016711,173.8,173.79,0.063]
[1740218757531,99.95016711,173.81,173.79,0.063]
[1740218758016,82.1,173.8,173.79,0.063]
[1740218758203,99.95016711,173.8,173.79,0.063]
[1740218759218,82.1,173.8,173.79,0.063]
[1740218760424,99.95016711,173.87,173.79,17.91316711]
[1740218760617,99.95016711,173.86,173.79,17.91316711]
[1740218760819,82.1,173.86,173.8,17.85016711]
[1740218761010,82.1,173.86,173.81,17.85016711]
[1740218761198,82.1,173.86,173.81,23.60346711]
[1740218761404,82.1,173.86,173.79,12.4396]
[1740218761405,99.95016711,173.86,173.79,12.4396]
[1740218761613,82.1,173.86,173.8,17.85016711]
[1740218761822,82.1,173.86,173.81,17.85016711]
[1740218763004,82.1,173.86,173.8,17.85016711]
[1740218763203,17.85016711,173.85,173.79,12.4396]
[1740218763527,82.1,173.86,173.79,12.4396]
[1740218763528,99.95016711,173.86,173.79,30.28976711]
[1740218763824,82.1,173.86,173.81,17.85016711]
[1740218765122,81.2,173.85,173.81,17.85016711]
[1740218765304,81.2,173.85,173.82,5.753]
[1740218765811,81.2,173.85,173.82,23.60316711]
[1740218766019,0.03,173.88,173.84,17.85016711]
[1740218766325,0.03,173.88,173.85,17.85016711]
[1740218766515,0.03,173.88,173.83,17.85016711]
[1740218767134,17.88016711,173.88,173.81,7.4013]
[1740218767315,0.03,173.88,173.82,17.85016711]
[1740218768229,17.88016711,173.88,173.81,25.25146711]
[1740218768428,17.85016711,173.86,173.79,30.28976711]
[1740218768632,81.2,173.85,173.79,12.4396]
[1740218769335,99.05016711,173.85,173.79,6.6858]
[1740218769514,17.85016711,173.82,173.79,0.063]
[1740218769719,99.05016711,173.81,173.79,0.063]
[1740218769932,81.2,173.81,173.79,0.063]
[1740218771019,81.2,173.8,173.79,0.063]
[1740218772529,99.05016711,173.8,173.79,0.063]
[1740218772931,82.1,173.8,173.79,0.063]
[1740218773633,105.70386711,173.8,173.79,0.063]
[1740218773818,42.25351597,173.8,173.79,0.063]
[1740218774524,43.25351597,173.8,173.79,0.063]
[1740218777334,62.10368308,173.8,173.79,0.0001]
[1740218777529,20.0,173.76,173.74,0.063]
[1740218777733,40.97981597,173.75,173.74,0.063]
[1740218777917,122.17981597,173.75,173.74,0.063]
[1740218778125,40.97981597,173.75,173.74,0.063]
[1740218779146,41.97981597,173.75,173.74,0.063]
[1740218779439,48.73511597,173.75,173.74,0.063]
[1740218780011,40.64964886,173.71,173.7,0.063]
[1740218780217,76.34998308,173.71,173.7,0.063]
[1740218781031,76.34998308,173.71,173.67,0.063]
[1740218781235,43.60786711,173.68,173.67,0.063]
[1740218781440,48.08786711,173.68,173.67,0.063]
[1740218784634,66.73751597,173.68,173.67,0.063]
[1740218785017,68.73751597,173.68,173.65,0.063]
[1740218785218,17.85016711,173.66,173.65,0.063]
[1740218785729,37.49981597,173.66,173.65,0.063]
[1740218785933,38.49981597,173.66,173.65,0.063]
[1740218786737,44.25811597,173.66,173.65,0.063]
[1740218786916,43.25811597,173.66,173.65,0.063]
[1740218787415,24.40794886,173.66,173.65,0.063]
[1740218787636,5.7583,173.66,173.65,0.063]
[1740218788229,42.25791597,173.67,173.65,0.063]
[1740218788439,36.49981597,173.67,173.65,0.063]
[1740218788819,42.25781597,173.67,173.65,0.063]
[1740218789016,82.1,173.66,173.65,0.063]
[1740218790146,82.1,173.66,173.65,17.91316711]
[1740218790332,82.1,173.71,173.65,17.91316711]
[1740218790527,82.1,173.71,173.67,17.85016711]
[1740218791045,82.1,173.71,173.66,23.93066711]
[1740218791354,82.1,173.71,173.67,17.85016711]
[1740218791649,82.1,173.74,173.69,17.85016711]
[1740218792034,82.1,173.74,173.68,17.85016711]
[1740218792343,87.8557,173.74,173.67,17.85016711]
[1740218792645,17.85016711,173.72,173.66,6.0805]
[1740218792846,23.60656711,173.72,173.66,6.0805]
[1740218793051,17.85016711,173.69,173.65,0.063]
[1740218793233,81.2,173.68,173.65,0.063]
[1740218793749,99.05016711,173.68,173.65,0.063]
[1740218794433,86.56,173.7,173.65,0.063]
[1740218794434,181.15016711,173.67,173.65,0.063]
[1740218794850,163.3,173.67,173.65,0.063]
[1740218796745,81.2,173.67,173.65,0.063]
[1740218800443,81.2,173.67,173.66,17.85016711]
[1740218801357,81.2,173.67,173.66,23.60846711]
[1740218802640,81.2,173.67,173.66,5.7583]
[1740218802847,81.2,173.67,173.66,23.60846711]
[1740218804057,81.2,173.67,173.65,0.063]
[1740218805641,81.2,173.67,173.65,17.91316711]
[1740218805962,81.2,173.67,173.66,17.85016711]
[1740218807557,81.2,173.67,173.66,5.7583]
[1740218807943,81.2,173.67,173.65,17.91316711]
[1740218808264,81.2,173.67,173.65,0.063]
[1740218808648,99.05016711,173.66,173.65,0.063]
[1740218808946,23.60816711,173.67,173.65,0.063]
[1740218809146,17.85016711,173.66,173.65,0.063]
[1740218809664,23.60846711,173.66,173.65,0.063]
[1740218810455,42.25811597,173.66,173.65,0.063]
[1740218811654,42.25811597,173.66,173.65,0.0001]
[1740218811655,44.25811597,173.66,173.65,0.0001]
[1740218812485,44.25811597,173.66,173.61,0.063]
[1740218812486,20.0,173.62,173.61,0.063]
[1740218812668,62.91981597,173.62,173.61,0.0001]